lending/lending_fUSD_20251116
["ID","MTS","AMOUNT","RATE_DAILY","PERIOD"]
[394087603,1763259041850,-151.0,0.00018,2]
[394087604,1763259041859,-285.062402,0.00018,2]
[394087605,1763259041868,-151.0,0.00018,2]
[394087606,1763259041878,-214.33942,0.00018,2]
[394087607,1763259041887,-285.062402,0.00018,2]
[394087608,1763259041896,-285.062402,0.00018,2]
[394087609,1763259041906,-151.0,0.00018,2]
[394087610,1763259041915,-151.0,0.00018,2]
[394087611,1763259041925,-151.0,0.00018,2]
[394087612,1763259041934,-151.0,0.00018,2]
[394087613,1763259041943,-184.808736,0.00018,2]
[394087614,1763259041952,-151.0,0.00018,2]
[394087615,1763259041962,-151.0,0.00018,2]
[394087616,1763259041971,-151.0,0.00018,2]
[394087617,1763259041980,-151.0,0.00018,2]
[394087618,1763259041989,-151.0,0.00018,2]
[394087619,1763259042002,-151.0,0.00018,2]
[394087620,1763259042012,-151.0,0.00018,2]
[394087621,1763259042021,-151.0,0.00018,2]
[394087622,1763259042031,-151.0,0.00018,2]
[394087623,1763259042040,-170.210898,0.00018,2]
[394087624,1763259042049,-151.0,0.00018,2]
[394087625,1763259042059,-151.0,0.00018,2]
[394087626,1763259042069,-151.0,0.00018,2]
[394087627,1763259042079,-183.859018,0.00018,2]
[394087628,1763259042088,-151.0,0.00018,2]
[394087629,1763259042097,-158.655559,0.00018,2]
[394087630,1763259042106,-151.0,0.00018,2]
[394087631,1763259042115,-151.0,0.00018,2]
[394087632,1763259042125,-151.0,0.00018,2]
[394087633,1763259042134,-151.0,0.00018,2]
[394087634,1763259042144,-151.0,0.00018,2]
[394087635,1763259042153,-151.0,0.00018,2]
[394087636,1763259042161,-151.0,0.00018,2]
[394087637,1763259042172,-151.0,0.00018,2]
[394087638,1763259042181,-151.0,0.00018,2]
[394087639,1763259042190,-151.0,0.00018,2]
[394087640,1763259042206,-151.0,0.00018,2]
[394087641,1763259042216,-151.0,0.00018,2]
[394087642,1763259042225,-157.625604,0.00018,2]
[394087643,1763259042234,-151.0,0.00018,2]
[394087644,1763259042244,-155.46606,0.00018,2]
[394087645,1763259042253,-151.0,0.00018,2]
[394087646,1763259042263,-151.0,0.00018,2]
[394087647,1763259042273,-780.765947,0.00018,2]
[394087648,1763259042283,-151.0,0.00018,2]
[394087649,1763259042292,-780.765947,0.00018,2]
[394087650,1763259042302,-151.0,0.00018,2]
[394087651,1763259042312,-151.0,0.00018,2]
[394087652,1763259042321,-780.765947,0.00018,2]
[394087653,1763259042331,-780.765947,0.00018,2]
[394087654,1763259042341,-151.0,0.00018,2]
[394087655,1763259042351,-152.09663,0.00018,2]
[394087656,1763259042360,-151.0,0.00018,2]
[394087657,1763259042370,-151.0,0.00018,2]
[394087658,1763259042380,-151.0,0.00018,2]
[394087659,1763259042389,-155.842467,0.00018,2]
[394087660,1763259042400,-151.0,0.00018,2]
[394087661,1763259042410,-151.0,0.00018,2]
[394087662,1763259042419,-151.0,0.00018,2]
[394087663,1763259042430,-151.0,0.00018,2]
[394087664,1763259042439,-151.0,0.00018,2]
[394087665,1763259042449,-151.0,0.00018,2]
[394087666,1763259042458,-151.0,0.00018,2]
[394087667,1763259042468,-151.0,0.00018,2]
[394087668,1763259042477,-151.0,0.00018,2]
[394087669,1763259042487,-152.143286,0.00018,2]
[394087670,1763259042496,-1321.03760506,0.00018,2]
[394087671,1763259042506,-297.01633072,0.00018,2]
[394087672,1763259042516,-828.0,0.00018,2]
[394087673,1763259042682,-151.0,0.00018,2]
[394087674,1763259042692,-828.0,0.00018,2]
[394087675,1763259042702,-151.0,0.00018,2]
[394087676,1763259042711,-828.0,0.00018,2]
[394087677,1763259042720,-151.0,0.00018,2]
[394087678,1763259042741,-866.77025462,0.00018,2]
[394087679,1763259042752,-151.0,0.00018,2]
[394087680,1763259042762,-491.413601,0.00018,2]
[394087681,1763259042772,-491.413601,0.00018,2]
[394087682,1763259042782,-151.0,0.00018,2]
[394087683,1763259042792,-151.0,0.00018,2]
[394087684,1763259042802,-491.413601,0.00018,2]
[394087685,1763259042812,-151.0,0.00018,2]
[394087686,1763259042821,-151.0,0.00018,2]
[394087687,1763259042831,-151.0,0.00018,2]
[394087688,1763259042841,-491.413601,0.00018,2]
[394087689,1763259042852,-151.0,0.00018,2]
[394087690,1763259042862,-155.272348,0.00018,2]
[394087691,1763259042872,-151.0,0.00018,2]
[394087692,1763259042882,-151.0,0.00018,2]
[394087693,1763259042892,-151.0,0.00018,2]
[394087694,1763259042902,-151.0,0.00018,2]
[394087695,1763259042911,-302.0,0.00018,2]
[394087696,1763259042922,-157.241708,0.00018,2]
[394087697,1763259042932,-151.0,0.00018,2]
[394087698,1763259042943,-151.0,0.00018,2]
[394087699,1763259042953,-151.0,0.00018,2]
[394087700,1763259042962,-151.0,0.00018,2]
[394087701,1763259042972,-151.0,0.00018,2]
[394087702,1763259042982,-514.052147,0.00018,2]
[394087703,1763259042992,-151.0,0.00018,2]
[394087704,1763259043002,-514.052147,0.00018,2]
[394087705,1763259043011,-514.052147,0.00018,2]
[394087706,1763259043022,-514.052147,0.00018,2]
[394087707,1763259043032,-151.0,0.00018,2]
[394087708,1763259043042,-151.0,0.00018,2]
[394087709,1763259043052,-224.888826,0.00018,2]
[394087710,1763259043061,-151.0,0.00018,2]
[394087711,1763259043071,-151.0,0.00018,2]
[394087712,1763259043081,-224.888826,0.00018,2]
[394087713,1763259043091,-151.0,0.00018,2]
[394087714,1763259043102,-266.029318,0.00018,2]
[394087715,1763259043112,-5597.90677,0.00018,2]
[394087716,1763259043122,-224.888826,0.00018,2]
[394087717,1763259043132,-151.0,0.00018,2]
[394087718,1763259043142,-224.888826,0.00018,2]
[394087719,1763259043156,-151.0,0.00018,2]
[394087720,1763259043167,-151.0,0.00018,2]
[394087721,1763259043181,-424.933004,0.00018,2]
[394087722,1763259043192,-151.0,0.00018,2]
[394087723,1763259043205,-151.0,0.00018,2]
[394087724,1763259043216,-424.933004,0.00018,2]
[394087725,1763259043230,-151.0,0.00018,2]
[394087726,1763259043249,-424.933004,0.00018,2]
[394087727,1763259043259,-424.933004,0.00018,2]
[394087728,1763259043269,-151.0,0.00018,2]
[394087729,1763259043280,-151.0,0.00018,2]
[394087730,1763259043290,-151.0,0.00018,2]
[394087731,1763259043304,-151.0,0.00018,2]
[394087732,1763259043314,-151.0,0.00018,2]
[394087733,1763259043324,-151.0,0.00018,2]
[394087734,1763259043335,-155.49973,0.00018,2]
[394087735,1763259043345,-151.0,0.00018,2]
[394087736,1763259043355,-151.0,0.00018,2]
[394087737,1763259043365,-151.0,0.00018,2]
[394087738,1763259043375,-151.0,0.00018,2]
[394087739,1763259043386,-151.0,0.00018,2]
[394087740,1763259043396,-151.0,0.00018,2]
[394087741,1763259043407,-151.0,0.00018,2]
[394087742,1763259043417,-151.0,0.00018,2]
[394087743,1763259043429,-151.0,0.00018,2]
[394087744,1763259043440,-151.0,0.00018,2]
[394087745,1763259043450,-151.0,0.00018,2]
[394087746,1763259043460,-151.0,0.00018,2]
[394087747,1763259043470,-151.0,0.00018,2]
[394087748,1763259043480,-151.0,0.00018,2]
[394087749,1763259043493,-151.0,0.00018,2]
[394087750,1763259043503,-151.0,0.00018,2]
[394087751,1763259043513,-151.0,0.00018,2]
[394087752,1763259043524,-160.745587,0.00018,2]
[394087753,1763259043535,-151.0,0.00018,2]
[394087754,1763259043545,-151.0,0.00018,2]
[394087755,1763259043556,-475.655495,0.00018,2]
[394087756,1763259043567,-475.655495,0.00018,2]
[394087757,1763259043577,-475.655495,0.00018,2]
[394087758,1763259043587,-475.655495,0.00018,2]
[394087759,1763259043597,-151.0,0.00018,2]
[394087760,1763259043608,-151.0,0.00018,2]
[394087761,1763259043619,-151.0,0.00018,2]
[394087762,1763259043628,-167.656865,0.00018,2]
[394087763,1763259043638,-151.0,0.00018,2]
[394087764,1763259043648,-317.467567,0.00018,2]
[394087765,1763259043658,-151.0,0.00018,2]
[394087766,1763259043668,-317.467567,0.00018,2]
[394087767,1763259043680,-317.467567,0.00018,2]
[394087768,1763259043690,-317.467567,0.00018,2]
[394087769,1763259043699,-151.0,0.00018,2]
[394087770,1763259043709,-151.0,0.00018,2]
[394087771,1763259043719,-151.0,0.00018,2]
[394087772,1763259043729,-151.0,0.00018,2]
[394087773,1763259043738,-151.0,0.00018,2]
[394087774,1763259043747,-151.0,0.00018,2]
[394087775,1763259043757,-151.0,0.00018,2]
[394087776,1763259043767,-151.0,0.00018,2]
[394087777,1763259043777,-151.0,0.00018,2]
[394087778,1763259043787,-151.0,0.00018,2]
[394087779,1763259043797,-151.0,0.00018,2]
[394087780,1763259043807,-151.0,0.00018,2]
[394087781,1763259043816,-151.0,0.00018,2]
[394087782,1763259043825,-151.0,0.00018,2]
[394087783,1763259043835,-163.244908,0.00018,2]
[394087784,1763259043845,-151.0,0.00018,2]
[394087785,1763259043855,-151.0,0.00018,2]
[394087786,1763259043865,-214.412412,0.00018,2]
[394087787,1763259043875,-151.0,0.00018,2]
[394087788,1763259043884,-151.0,0.00018,2]
[394087789,1763259043894,-151.0,0.00018,2]
[394087790,1763259043904,-153.633799,0.00018,2]
[394087791,1763259043913,-151.0,0.00018,2]
[394087792,1763259043923,-151.0,0.00018,2]
[394087793,1763259043932,-151.0,0.00018,2]
[394087794,1763259043942,-151.0,0.00018,2]
[394087795,1763259043952,-151.0,0.00018,2]
[394087796,1763259043961,-151.0,0.00018,2]
[394087797,1763259043971,-173.91,0.00018,2]
[394087798,1763259043981,-400.813312,0.00018,2]
[394087799,1763259043991,-151.0,0.00018,2]
[394087800,1763259044000,-278.62,0.00018,2]
[394087801,1763259044010,-400.813312,0.00018,2]
[394087802,1763259044019,-400.813312,0.00018,2]
[394087803,1763259044029,-400.813312,0.00018,2]
[394087804,1763259044039,-728.883819,0.00018,2]
[394087805,1763259044048,-151.0,0.00018,2]
[394087806,1763259044058,-728.883819,0.00018,2]
[394087807,1763259044068,-151.0,0.00018,2]
[394087808,1763259044077,-728.883819,0.00018,2]
[394087809,1763259044087,-212.656425,0.00018,2]
[394087810,1763259044096,-151.0,0.00018,2]
[394087811,1763259044106,-728.883819,0.00018,2]
[394087812,1763259044115,-212.656425,0.00018,2]
[394087813,1763259044124,-151.0,0.00018,2]
[394087814,1763259044134,-466.670653,0.00018,2]
[394087815,1763259044143,-212.656425,0.00018,2]
[394087816,1763259044153,-151.0,0.00018,2]
[394087817,1763259044162,-151.0,0.00018,2]
[394087818,1763259044173,-151.0,0.00018,2]
[394087819,1763259044182,-466.670653,0.00018,2]
[394087820,1763259044193,-212.656425,0.00018,2]
[394087821,1763259044210,-151.0,0.00018,2]
[394087822,1763259044220,-151.0,0.00018,2]
[394087823,1763259044230,-151.0,0.00018,2]
[394087824,1763259044240,-151.0,0.00018,2]
[394087825,1763259044250,-466.670653,0.00018,2]
[394087826,1763259044259,-151.0,0.00018,2]
[394087827,1763259044269,-151.0,0.00018,2]
[394087828,1763259044280,-466.670653,0.00018,2]
[394087829,1763259044289,-379.388842,0.00018,2]
[394087830,1763259044299,-151.0,0.00018,2]
[394087831,1763259044308,-379.388842,0.00018,2]
[394087832,1763259044318,-151.0,0.00018,2]
[394087833,1763259044328,-188.290121,0.00018,2]
[394087834,1763259044338,-151.0,0.00018,2]
[394087835,1763259044348,-285.642049,0.00018,2]
[394087836,1763259044358,-151.0,0.00018,2]
[394087837,1763259044367,-188.290121,0.00018,2]
[394087838,1763259044377,-379.388842,0.00018,2]
[394087839,1763259044386,-285.642049,0.00018,2]
[394087840,1763259044396,-188.290121,0.00018,2]
[394087841,1763259044406,-151.0,0.00018,2]
[394087842,1763259044416,-379.388842,0.00018,2]
[394087843,1763259044427,-285.642049,0.00018,2]
[394087844,1763259044437,-184.037524,0.00018,2]
[394087845,1763259044447,-188.290121,0.00018,2]
[394087846,1763259044457,-285.642049,0.00018,2]
[394087847,1763259044468,-151.0,0.00018,2]
[394087848,1763259044478,-151.0,0.00018,2]
[394087849,1763259044488,-151.0,0.00018,2]
[394087850,1763259044498,-151.0,0.00018,2]
[394087851,1763259044582,-151.0,0.00018,2]
[394087852,1763259044592,-774.00576139,0.00018,2]
[394087853,1763259044601,-247.04898881,0.00018,2]
[394087854,1763259044610,-168.702072,0.00018,2]
[394087855,1763259044619,-168.702072,0.00018,2]
[394087856,1763259044629,-168.702072,0.00018,2]
[394087857,1763259044639,-168.702072,0.00018,2]
[394087858,1763259044648,-151.0,0.00018,2]
[394087859,1763259044659,-151.0,0.00018,2]
[394087860,1763259044669,-151.0,0.00018,2]
[394087861,1763259044682,-151.0,0.00018,2]
[394087862,1763259044691,-151.0,0.00018,2]
[394087863,1763259044700,-151.0,0.00018,2]
[394087864,1763259044710,-151.0,0.00018,2]
[394087865,1763259044719,-218.122017,0.00018,2]
[394087866,1763259044729,-278.78028,0.00018,2]
[394087867,1763259044739,-218.122017,0.00018,2]
[394087868,1763259044748,-151.0,0.00018,2]
[394087869,1763259044758,-278.78028,0.00018,2]
[394087870,1763259044767,-151.0,0.00018,2]
[394087871,1763259044777,-218.122017,0.00018,2]
[394087872,1763259044787,-278.78028,0.00018,2]
[394087873,1763259044797,-257.761001,0.00018,2]
[394087874,1763259044807,-278.78028,0.00018,2]
[394087875,1763259044817,-218.122017,0.00018,2]
[394087876,1763259044828,-151.0,0.00018,2]
[394087877,1763259044838,-1916.491709,0.00018,2]
[394087878,1763259044847,-1916.491709,0.00018,2]
[394087879,1763259044857,-151.0,0.00018,2]
[394087880,1763259044868,-1916.491709,0.00018,2]
[394087881,1763259044879,-1916.491709,0.00018,2]
[394087882,1763259044888,-151.0,0.00018,2]
[394087883,1763259044898,-151.0,0.00018,2]
[394087884,1763259044908,-151.0,0.00018,2]
[394087885,1763259044918,-151.0,0.00018,2]
[394087886,1763259044932,-151.0,0.00018,2]
[394087887,1763259044942,-151.0,0.00018,2]
[394087888,1763259044951,-151.0,0.00018,2]
[394087889,1763259044960,-181.313631,0.00018,2]
[394087890,1763259044969,-151.0,0.00018,2]
[394087891,1763259044979,-154.892174,0.00018,2]
[394087892,1763259044988,-154.892174,0.00018,2]
[394087893,1763259044997,-154.892174,0.00018,2]
[394087894,1763259045007,-151.0,0.00018,2]
[394087895,1763259045016,-151.0,0.00018,2]
[394087896,1763259045025,-154.892174,0.00018,2]
[394087897,1763259045035,-151.0,0.00018,2]
[394087898,1763259045045,-151.0,0.00018,2]
[394087899,1763259045054,-166.0,0.00018,2]
[394087900,1763259045063,-152.97374781,0.00018,2]
[394087901,1763259045073,-151.0,0.00018,2]
[394087902,1763259045083,-166.0,0.00018,2]
[394087903,1763259045093,-154.95449082,0.00018,2]
[394087904,1763259045103,-166.0,0.00018,2]
[394087905,1763259045113,-151.0,0.00018,2]
[394087906,1763259045123,-151.0,0.00018,2]
[394087907,1763259045133,-151.0,0.00018,2]
[394087908,1763259045142,-151.0,0.00018,2]
[394087909,1763259045152,-168.706241,0.00018,2]
[394087910,1763259045162,-287.06785,0.00018,2]
[394087911,1763259045179,-151.0,0.00018,2]
[394087912,1763259045190,-168.706241,0.00018,2]
[394087913,1763259045204,-287.06785,0.00018,2]
[394087914,1763259045215,-151.0,0.00018,2]
[394087915,1763259045226,-168.706241,0.00018,2]
[394087916,1763259045236,-287.06785,0.00018,2]
[394087917,1763259045248,-229.166259,0.00018,2]
[394087918,1763259045260,-151.0,0.00018,2]
[394087919,1763259045272,-168.706241,0.00018,2]
[394087920,1763259045284,-287.06785,0.00018,2]
[394087921,1763259045296,-229.166259,0.00018,2]
[394087922,1763259045309,-229.166259,0.00018,2]
[394087923,1763259045321,-229.166259,0.00018,2]
[394087924,1763259045333,-263.472142,0.00018,2]
[394087925,1763259045345,-166.66,0.00018018,2]
[394087926,1763259045355,-326.47,0.0001807,2]
[394087927,1763259045366,-5888.0,0.00018079,2]
[394087928,1763259045377,-200.0,0.0001808,2]
[394087929,1763259045388,-1000.0,0.00018082,2]
[394087930,1763259045399,-617.40005154,0.00018083,2]
[394087931,1763259045410,-151.0,0.00018083,2]
[394087932,1763259045426,-2392.0,0.00018098,2]
[394087933,1763259045450,-300.0,0.00018107,2]
[394087934,1763259045460,-1289.0,0.00018113,2]
[394087935,1763259045472,-1289.0,0.00018144,2]
[394087936,1763259045482,-200.0,0.0001818,2]
[394087937,1763259045494,-5597.90678,0.0001823,2]
[394087938,1763259045506,-1289.0,0.00018239,2]
[394087939,1763259045517,-4641.0,0.0001824,2]
[394087940,1763259045529,-278.62,0.00018274,2]
[394087941,1763259045540,-1289.0,0.00018281,2]
[394087942,1763259045551,-2084.0,0.00018329,2]
[394087943,1763259045562,-151.0,0.00018356,2]
[394087944,1763259045573,-287.61899177,0.00018356,2]
[394087945,1763259045585,-334.5472959,0.00018356,2]
[394087946,1763259045596,-1316.46,0.00018356,2]
[394087947,1763259045607,-1289.0,0.00018367,2]
[394087948,1763259045618,-2970.0,0.00018412,2]
[394087949,1763259045630,-560.79751116,0.00018483,2]
[394087950,1763259045641,-1000.0,0.00018521,2]
[394087951,1763259045652,-503.35407745,0.00018521,2]
[394087952,1763259045663,-739.98478964,0.00018521,2]
[394087953,1763259045681,-2970.0,0.00018539,2]
[394087954,1763259045693,-278.62,0.00018548,2]
[394087955,1763259045704,-166.66,0.00018594,2]
[394087956,1763259045715,-2970.0,0.00018601,2]
[394087957,1763259045725,-4376.0,0.0001863,2]
[394087958,1763259045735,-640.24385345,0.00018631,2]
[394087959,1763259045746,-151.0,0.00018631,2]
[394087960,1763259045757,-1025.91009196,0.0001866,2]
[394087961,1763259045768,-207.4,0.00018666,2]
[394087962,1763259045779,-1289.0,0.00018687,2]
[394087965,1763259045791,-2392.0,0.00018694,2]
[394087966,1763259045802,-6228.79779485,0.00018701,2]
[394087967,1763259045812,-2084.0,0.0001871,2]
[394087968,1763259045823,-5597.90678,0.0001873,2]
[394087969,1763259045834,-1000.0,0.0001876,2]
[394087970,1763259045844,-150.39,0.000188,2]
[394087971,1763259045854,-150.39,0.000188,2]
[394087972,1763259045865,-150.39,0.000188,2]
[394087974,1763259045877,-150.39,0.000188,2]
[394087976,1763259045889,-150.39,0.000188,2]
[394087978,1763259045899,-150.39,0.000188,2]
[394087980,1763259045910,-150.39,0.000188,2]
[394087983,1763259045920,-150.39,0.000188,2]
[394087984,1763259045935,-150.39,0.000188,2]
[394087987,1763259045946,-150.39,0.000188,2]
[394087988,1763259045955,-150.39,0.000188,2]
[394087989,1763259045966,-150.39,0.000188,2]
[394087990,1763259045976,-150.39,0.000188,2]
[394087991,1763259045986,-150.39,0.000188,2]
[394087992,1763259045996,-150.39,0.000188,2]
[394087993,1763259046007,-150.39,0.000188,2]
[394087994,1763259046016,-150.39,0.000188,2]
[394087995,1763259046026,-150.39,0.000188,2]
[394087996,1763259046037,-150.39,0.000188,2]
[394087997,1763259046047,-150.39,0.000188,2]
[394087998,1763259046057,-150.39,0.000188,2]
[394087999,1763259046067,-150.39,0.000188,2]
[394088000,1763259046076,-150.39,0.000188,2]
[394088001,1763259046086,-150.39,0.000188,2]
[394088002,1763259046095,-150.39,0.000188,2]
[394088003,1763259046105,-150.39,0.000188,2]
[394088004,1763259046114,-150.39,0.000188,2]
[394088005,1763259046123,-150.39,0.000188,2]
[394088006,1763259046132,-150.39,0.000188,2]
[394088007,1763259046142,-150.39,0.000188,2]
[394088008,1763259046152,-150.39,0.000188,2]
[394088009,1763259046161,-150.39,0.000188,2]
[394088010,1763259046171,-150.39,0.000188,2]
[394088011,1763259046184,-150.39,0.000188,2]
[394088012,1763259046194,-150.39,0.000188,2]
[394088013,1763259046205,-150.39,0.000188,2]
[394088014,1763259046218,-150.39,0.000188,2]
[394088015,1763259046227,-150.39,0.000188,2]
[394088016,1763259046237,-150.39,0.000188,2]
[394088017,1763259046247,-150.39,0.000188,2]
[394088018,1763259046258,-150.39,0.000188,2]
[394088019,1763259046268,-150.39,0.000188,2]
[394088020,1763259046278,-150.39,0.000188,2]
[394088021,1763259046289,-278.62,0.00018822,2]
[394088022,1763259046298,-2970.0,0.00018829,2]
[394088023,1763259046308,-2970.0,0.00018846,2]
[394088024,1763259046318,-560.79751116,0.00018856,2]
[394088025,1763259046328,-2970.0,0.00018884,2]
[394088026,1763259046338,-168.0,0.00018885,2]
[394088027,1763259046347,-587.0,0.00018935,2]
[394088028,1763259046357,-8323.68155761,0.00019,2]
[394088032,1763259046392,-1160.68063496,0.00019,2]
[394088033,1763259046402,-1047.59673315,0.00019,2]
[394088034,1763259046412,-363.07530367,0.00019,2]
[394088035,1763259046422,-300.0,0.00019,2]
[394088036,1763259046435,-354.90817882,0.0001901,7]
[394088037,1763259046445,-326.47,0.00019022,2]
[394088038,1763259046455,-352.81716112,0.00019068,2]
[394088039,1763259046465,-278.6216559,0.00019096,2]
[394088040,1763259046475,-2351.0,0.00019126,2]
[394088041,1763259046485,-166.66,0.00019169,2]
[394088042,1763259046495,-3009.00179061,0.00019178,2]
[394088043,1763259046505,-151.0,0.00019178,2]
[394088044,1763259046514,-153.692025,0.00019178,2]
[394088045,1763259046524,-1351.358481,0.00019178,2]
[394088046,1763259046534,-1351.358481,0.00019178,2]
[394088047,1763259046544,-1351.358481,0.00019178,2]
[394088048,1763259046554,-1351.358481,0.00019178,2]
[394088049,1763259046564,-663.93287602,0.00019179,2]
[394088050,1763259046574,-151.0,0.00019179,2]
[394088051,1763259046584,-117.88388948,0.00019229,2]
[394088052,1763259047409,-1000.0,0.00017378,2]
[394088053,1763259047421,-913.27437397,0.00017378,2]
[394088060,1763259114895,152.96,9.071e-05,2]
[394088061,1763259115101,152.96,0.00010583,2]
[394088062,1763259115329,152.96,0.00012095,2]
[394088063,1763259115539,152.96,0.00013607,2]
[394088064,1763259115866,152.96,0.00015118,2]
[394088065,1763259143649,1000.0,0.00013699,2]
[394088069,1763259217611,323.91,0.00030136,120]
[394088072,1763259506395,32314.32113307,0.00030137,120]
[394088073,1763259512486,215.1466826,0.00013567,2]
[394088074,1763259512793,215.1466826,0.00013754,2]
[394088075,1763259513124,215.1466826,0.00014062,2]
[394088076,1763259513433,215.1466826,0.00014465,2]
[394088077,1763259513720,215.1466826,0.00014625,2]
[394088078,1763259514029,215.1466826,0.00014896,2]
[394088079,1763259514353,215.1466826,0.00015266,2]
[394088080,1763259514658,215.1466826,0.00015351,2]
[394088081,1763259695516,264.952,0.00015519,2]
[394088098,1763259974854,-300.0,0.00015599,2]
[394088099,1763259983157,155.11,0.00013033,2]
[394088100,1763260015033,2969.59610935,0.000162,5]
[394088101,1763260015058,26098.89288398,0.000162,5]
[394088102,1763260021223,300.0,0.00015599,2]
[394088103,1763260037210,300.0,0.000159,5]
[394088120,1763260141265,150.0,0.00030136,120]
[394088124,1763260147181,215.65258137,0.00015466,2]
[394088147,1763260201130,300.0,0.00015599,2]
[394088148,1763260201184,1200.0,0.00015599,2]
[394088182,1763260231918,-2156.27335295,0.000156,2]
[394088184,1763260231929,-1468.95463411,0.000156,2]
[394088186,1763260231939,-1280.95075832,0.000156,2]
[394088188,1763260231951,-1360.08995707,0.000156,2]
[394088190,1763260231962,-2020.68829915,0.000156,2]
[394088191,1763260232006,-3583.37983926,0.000156,2]
[394088192,1763260232017,-34071.82135714,0.000156,2]
[394088193,1763260232027,-195.0,0.00015606,2]
[394088194,1763260232036,-670.48,0.00015625,2]
[394088195,1763260232045,-195.0,0.00015691,2]
[394088196,1763260232055,-215.65258137,0.00015723,2]
[394088197,1763260232064,-20438.6595,0.00015736,2]
[394088198,1763260232073,-501.68730018,0.00015767,2]
[394088199,1763260232082,-473.89091281,0.00015767,2]
[394088200,1763260232092,-500.91239036,0.00015767,2]
[394088201,1763260232100,-240.73828569,0.00015773,2]
[394088202,1763260232109,-268.1169848,0.00015773,2]
[394088203,1763260232119,-222.89,0.00015826,2]
[394088204,1763260232127,-200.0,0.00015826,2]
[394088205,1763260232136,-200.0,0.00015826,2]
[394088206,1763260232145,-151.0,0.00015826,2]
[394088207,1763260232154,-151.0,0.00015826,2]
[394088208,1763260232163,-151.0,0.00015826,2]
[394088209,1763260232173,-151.0,0.00015826,2]
[394088210,1763260232182,-151.0,0.00015826,2]
[394088211,1763260232191,-151.0,0.00015826,2]
[394088212,1763260232201,-151.0,0.00015826,2]
[394088213,1763260232210,-151.0,0.00015826,2]
[394088214,1763260232219,-151.0,0.00015826,2]
[394088215,1763260232228,-151.0,0.00015826,2]
[394088216,1763260232237,-151.0,0.00015826,2]
[394088217,1763260232247,-200.0,0.00015826,2]
[394088219,1763260232258,-501.58020004,0.00015873,2]
[394088221,1763260232267,-500.0,0.00015873,2]
[394088223,1763260232276,-500.0,0.00015873,2]